fUSD/lending_fUSD_20240317
["ID","MTS","AMOUNT","RATE_DAILY","PERIOD"]
[319400331,1710711188968,-158.45099349,0.00024127,2]
[319400332,1710711188978,-150.0,0.00024146,2]
[319400333,1710711188988,-10453.19,0.00024148,7]
[319400334,1710711188998,-10453.19,0.00024148,7]
[319400335,1710711189009,-45165.41176254,0.0002415,2]
[319400336,1710711189019,-150.0,0.00024156,2]
[319400337,1710711189029,-417.14,0.00024156,2]
[319400338,1710711189039,-1032.37,0.00024156,2]
[319400339,1710711189050,-150.0,0.00024156,2]
[319400340,1710711189060,-553.81,0.00024156,2]
[319400341,1710711189069,-300.0,0.00024156,2]
[319400342,1710711189079,-1069.0,0.00024167,2]
[319400343,1710711189089,-4892.0,0.00024167,2]
[319400344,1710711189099,-1129.0,0.00024167,2]
[319400345,1710711189109,-361.0,0.00024167,2]
[319400346,1710711189119,-154.5275948,0.0002417,2]
[319400347,1710711189128,-500.0,0.000242,2]
[319400348,1710711189138,-310.0,0.000242,2]
[319400349,1710711189149,-303.0,0.000242,2]
[319400350,1710711189158,-300.0,0.000242,2]
[319400351,1710711189169,-506.0,0.000242,2]
[319400352,1710711189179,-5000.0032539,0.0002421,5]
[319400353,1710711189188,-3427.22460041,0.0002421,2]
[319400354,1710711189200,-150.0,0.00024225,2]
[319400355,1710711189210,-1198.47343688,0.0002425,2]
[319400356,1710711189221,-151.93527497,0.00024298,2]
[319400357,1710711189231,-154.06087022,0.00024303,2]
[319400358,1710711189242,-155.33791431,0.00024328,2]
[319400359,1710711189253,-150.0,0.00024336,2]
[319400360,1710711189263,-150.0,0.00024341,2]
[319400361,1710711189273,-2000.0,0.00024342,2]
[319400362,1710711189283,-150.0,0.00024346,2]
[319400363,1710711189293,-1069.0,0.00024406,2]
[319400364,1710711189303,-4892.0,0.00024406,2]
[319400365,1710711189314,-1129.0,0.00024406,2]
[319400366,1710711189323,-361.0,0.00024406,2]
[319400367,1710711189334,-150.0,0.00024409,2]
[319400368,1710711189343,-1008.66,0.0002441,2]
[319400369,1710711189358,-1008.66,0.0002441,2]
[319400370,1710711189368,-150.0,0.00024411,2]
[319400371,1710711189378,-327.80252315,0.0002442,2]
[319400372,1710711189387,-10453.19,0.00024421,7]
[319400373,1710711189397,-10453.19,0.00024421,7]
[319400374,1710711189406,-9477.78459551,0.0002444,4]
[319400375,1710711189415,-300.0,0.00024441,2]
[319400376,1710711189425,-150.0,0.00024448,2]
[319400377,1710711189435,-150.0,0.0002446,2]
[319400378,1710711189445,-1500.0,0.00024464,2]
[319400379,1710711189455,-150.0,0.00024499,2]
[319400380,1710711189465,-300.0,0.00024517,2]
[319400381,1710711189480,-1500.0,0.00024552,2]
[319400382,1710711189493,-433.98,0.00024567,2]
[319400383,1710711189503,-1026.0,0.00024605,2]
[319400384,1710711189513,-287.70140034,0.00024615,2]
[319400385,1710711189524,-1500.0,0.00024629,2]
[319400386,1710711189533,-155.33791431,0.0002463,2]
[319400387,1710711189544,-150.0,0.00024639,2]
[319400388,1710711189555,-1069.0,0.00024646,2]
[319400389,1710711189566,-4892.0,0.00024646,2]
[319400390,1710711189577,-1129.0,0.00024646,2]
[319400391,1710711189588,-361.0,0.00024646,2]
[319400392,1710711189597,-500.0,0.00024657,2]
[319400393,1710711189608,-500.0,0.00024657,2]
[319400394,1710711189618,-500.0,0.00024657,2]
[319400395,1710711189628,-500.0,0.00024657,2]
[319400396,1710711189639,-500.0,0.00024657,2]
[319400397,1710711189649,-500.0,0.00024657,2]
[319400398,1710711189660,-500.0,0.00024657,2]
[319400399,1710711189669,-500.0,0.00024657,2]
[319400400,1710711189679,-500.0,0.00024657,2]
[319400401,1710711189689,-500.0,0.00024657,2]
[319400402,1710711189700,-500.0,0.00024657,2]
[319400403,1710711189711,-565.12690843,0.00024657,2]
[319400404,1710711189723,-8356.03,0.00024658,4]
[319400405,1710711189733,-2902.86,0.00024658,10]
[319400406,1710711189743,-239.75,0.00024658,4]
[319400407,1710711189753,-155.0,0.00024658,2]
[319400408,1710711189764,-150.0,0.00024672,2]
[319400409,1710711189774,-10453.19,0.00024694,7]
[319400410,1710711189784,-10453.19,0.00024694,7]
[319400411,1710711189794,-304.45,0.000247,2]
[319400412,1710711189805,-304.45,0.000247,2]
[319400413,1710711189815,-304.45,0.000247,2]
[319400414,1710711189827,-304.45,0.000247,2]
[319400415,1710711189838,-304.45,0.000247,2]
[319400416,1710711189848,-304.45,0.000247,2]
[319400417,1710711189860,-304.45,0.000247,2]
[319400418,1710711189869,-304.45,0.000247,2]
[319400419,1710711189879,-304.45,0.000247,2]
[319400420,1710711189889,-304.45,0.000247,2]
[319400421,1710711189900,-304.45,0.000247,2]
[319400422,1710711189912,-304.45,0.000247,2]
[319400423,1710711189923,-304.45,0.000247,2]
[319400424,1710711189934,-304.45,0.000247,2]
[319400425,1710711189944,-304.45,0.000247,2]
[319400426,1710711189954,-304.45,0.000247,2]
[319400427,1710711189965,-304.45,0.000247,2]
[319400428,1710711189976,-304.45,0.000247,2]
[319400429,1710711189986,-304.45,0.000247,2]
[319400430,1710711189997,-304.45,0.000247,2]
[319400431,1710711190008,-304.45,0.000247,2]
[319400432,1710711190017,-304.45,0.000247,2]
[319400433,1710711190027,-304.45,0.000247,2]
[319400434,1710711190037,-304.45,0.000247,2]
[319400435,1710711190046,-318.52,0.0002471,2]
[319400436,1710711190056,-153.7475728,0.00024729,2]
[319400437,1710711190066,-150.0,0.0002473,2]
[319400438,1710711190077,-20000.0,0.000248,5]
[319400439,1710711190087,-395.310628,0.000248,2]
[319400440,1710711190097,-150.0,0.00024837,2]
[319400441,1710711190107,-1200.0,0.000249,9]
[319400442,1710711190118,-155.33791431,0.00024927,2]
[319400443,1710711190129,-150.0,0.00024931,2]
[319400444,1710711190139,-424.629798,0.00024932,2]
[319400445,1710711190151,-1458.510209,0.0002494,7]
[319400446,1710711190162,-361.05,0.00024953,2]
[319400447,1710711190172,-1000.0,0.0002496,7]
[319400448,1710711190183,-150.0,0.00024967,2]
[319400449,1710711190194,-10453.19,0.00024967,7]
[319400450,1710711190204,-10453.19,0.00024967,7]
[319400451,1710711190215,-400.0,0.0002497,2]
[319400452,1710711190225,-300.0,0.0002497,2]
[319400453,1710711190236,-2000.0,0.00024973,2]
[319400454,1710711190246,-150.0,0.00024978,2]
[319400455,1710711190256,-414.91,0.00024978,2]
[319400456,1710711190266,-414.91,0.00024978,2]
[319400457,1710711190276,-150.0,0.00024978,2]
[319400458,1710711190286,-414.91,0.00024978,2]
[319400459,1710711190297,-414.91,0.00024978,2]
[319400460,1710711190307,-414.91,0.00024978,2]
[319400461,1710711190317,-605.7,0.00024978,2]
[319400462,1710711190327,-185.4,0.00024978,2]
[319400463,1710711190336,-1000.0,0.0002498,7]
[319400464,1710711190346,-231.72108626,0.00024996,2]
[319400465,1710711190357,-173.31923057,0.00025,2]
[319400466,1710711190367,-49767.0,0.00025,2]
[319400467,1710711190377,-200.0001414,0.00025,2]
[319400468,1710711190388,-194132.46797619,0.00025,4]
[319400469,1710711190398,-26682.07339547,0.00025,7]
[319400470,1710711190408,-378750.12257121,0.00025,4]
[319400471,1710711190418,-500.0,0.00025,2]
[319400472,1710711190428,-2832.3525718,0.00025,2]
[319400473,1710711190438,-230417.02785384,0.00025,4]
[319400474,1710711190447,-3328.91710088,0.00025,4]
[319400475,1710711190457,-30310.34577348,0.00025,2]
[319400476,1710711190467,-295755.90750999,0.00025,30]
[319400477,1710711190477,-1200.0,0.00025,26]
[319400478,1710711190489,-2585.79399208,0.00025,30]
[319400479,1710711190499,-152.06838728,0.00025,2]
[319400480,1710711190510,-150.0,0.00025,2]
[319400481,1710711190519,-150.0,0.00025,2]
[319400482,1710711190531,-4340.0,0.00025,2]
[319400483,1710711190541,-433022.97707942,0.00025,5]
[319400484,1710711190551,-6592.73982771,0.00025,30]
[319400485,1710711190565,-1954.51463588,0.00025,10]
[319400486,1710711190575,-3140.53383776,0.00025,5]
[319400487,1710711190586,-702.0,0.00025,13]
[319400488,1710711190595,-1800.0,0.00025,3]
[319400489,1710711190606,-14685.0,0.00025,5]
[319400490,1710711190616,-200.0,0.00025,2]
[319400491,1710711190628,-1000.0,0.00025,7]
[319400492,1710711190640,-608.0099,0.00025,2]
[319400493,1710711190650,-608.0099,0.00025,2]
[319400494,1710711190661,-152.0,0.00025017,3]
[319400495,1710711190672,-151.12768755,0.00025089,2]
[319400496,1710711190682,-3149.97293505,0.000251,2]
[319400497,1710711190693,-318.52,0.0002511,2]
[319400498,1710711190703,-155.33791431,0.00025139,2]
[319400499,1710711190714,-151.30766298,0.00025151,2]
[319400500,1710711190723,-201.04772,0.00025158,2]
[319400501,1710711190733,-150.0,0.00025234,2]
[319400502,1710711190743,-151.12768755,0.00025299,2]
[319400503,1710711190754,-287.70140034,0.000253,2]
[319400504,1710711190765,-1843.94,0.00025321,2]
[319400505,1710711190777,-947.26,0.00025321,2]
[319400506,1710711190789,-151.30766298,0.00025366,2]
[319400507,1710711190800,-165.56873329,0.00025369,2]
[319400508,1710711190810,-693.56,0.00025458,2]
[319400509,1710711190819,-150.0,0.00025458,2]
[319400510,1710711190830,-300.0,0.00025458,2]
[319400511,1710711190840,-238.7,0.00025458,2]
[319400512,1710711190851,-150.0,0.00025458,2]
[319400513,1710711190863,-151.26,0.00025458,2]
[319400514,1710711191063,-346.78,0.00025458,2]
[319400515,1710711191073,-150.0,0.00025458,2]
[319400516,1710711191083,-346.78,0.00025458,2]
[319400517,1710711191093,-970.54,0.00025458,2]
[319400518,1710711191103,-150.0,0.00025458,2]
[319400519,1710711191113,-346.78,0.00025458,2]
[319400520,1710711191122,-346.78,0.00025458,2]
[319400521,1710711191131,-150.0,0.00025458,2]
[319400522,1710711191141,-150.0,0.00025458,2]
[319400523,1710711191151,-346.78,0.00025458,2]
[319400524,1710711191161,-702.0,0.000255,13]
[319400525,1710711191171,-15301.5,0.000255,2]
[319400526,1710711191182,-15301.5,0.000255,2]
[319400527,1710711191194,-15301.5,0.000255,2]
[319400528,1710711191206,-15301.5,0.000255,2]
[319400529,1710711191215,-15301.5,0.000255,2]
[319400530,1710711191225,-15301.5,0.000255,2]
[319400531,1710711191234,-15301.5,0.000255,2]
[319400532,1710711191243,-15301.5,0.000255,2]
[319400533,1710711191252,-15301.5,0.000255,2]
[319400534,1710711191264,-15301.5,0.000255,2]
[319400535,1710711191274,-15301.5,0.000255,2]
[319400536,1710711191285,-15301.5,0.000255,2]
[319400537,1710711191294,-15301.5,0.000255,2]
[319400538,1710711191304,-15301.5,0.000255,2]
[319400539,1710711191314,-15301.5,0.000255,2]
[319400540,1710711191326,-15301.5,0.000255,2]
[319400541,1710711191337,-15301.5,0.000255,2]
[319400542,1710711191346,-15301.5,0.000255,2]
[319400543,1710711191356,-15301.5,0.000255,2]
[319400544,1710711191367,-15301.5,0.000255,2]
[319400545,1710711191377,-151.30766298,0.00025502,2]
[319400546,1710711191386,-152.0,0.00025582,2]
[319400547,1710711191396,-174.047406,0.00025607,2]
[319400548,1710711191407,-178.442931,0.00025607,2]
[319400549,1710711191418,-1588.581011,0.00025607,2]
[319400550,1710711191427,-668.812443,0.00025607,2]
[319400551,1710711191436,-162.923786,0.00025607,2]
[319400552,1710711191446,-4992.752777,0.00025607,2]
[319400553,1710711191455,-168.286076,0.00025607,2]
[319400554,1710711191465,-1591.177477,0.00025607,2]
[319400555,1710711191473,-155.592086,0.00025607,2]
[319400556,1710711191487,-7774.627749,0.00025607,2]
[319400557,1710711191496,-168.129195,0.00025607,2]
[319400558,1710711191506,-2539.48115,0.00025607,2]
[319400559,1710711191515,-159.974519,0.00025607,2]
[319400560,1710711191526,-1834.561396,0.00025607,2]
[319400561,1710711191535,-167.893871,0.00025607,2]
[319400562,1710711191545,-791.660269,0.00025607,2]
[319400563,1710711191555,-173.601836,0.00025607,2]
[319400564,1710711191567,-227.212615,0.00025607,2]
[319400565,1710711191578,-174.581413,0.00025607,2]
[319400566,1710711191589,-175.307072,0.00025607,2]
[319400567,1710711191600,-177.944818,0.00025607,2]
[319400568,1710711191609,-239.579458,0.00025607,2]
[319400569,1710711191619,-3547.320886,0.00025607,2]
[319400570,1710711191629,-8206.169904,0.00025607,2]
[319400571,1710711191640,-10472.184871,0.00025607,2]
[319400572,1710711191651,-3753.690664,0.00025607,2]
[319400573,1710711191662,-272.916769,0.00025607,2]
[319400574,1710711191671,-173.109916,0.00025607,2]
[319400575,1710711191681,-174.21791,0.00025607,2]
[319400576,1710711191690,-181.743366,0.00025607,2]
[319400577,1710711191700,-189.907589,0.00025607,2]
[319400578,1710711191710,-1008.66,0.00025615,2]
[319400579,1710711191719,-1008.66,0.00025615,2]
[319400580,1710711191729,-150.0,0.00025739,2]
[319400581,1710711191737,-424.629798,0.00025753,2]
[319400582,1710711191748,-4536.916962,0.000258,2]
[319400583,1710711191759,-301.28,0.000258,2]
[319400584,1710711191769,-151.30766298,0.00025887,2]
[319400585,1710711191779,-1026.0,0.000259,2]
[319400586,1710711191788,-175.58196688,0.00025908,2]
[319400587,1710711191800,-239.579458,0.00025927,2]
[319400588,1710711191811,-1588.581011,0.00025927,2]
[319400589,1710711191821,-668.812443,0.00025927,2]
[319400590,1710711191830,-3547.320886,0.00025927,2]
[319400591,1710711191838,-4992.752777,0.00025927,2]
[319400592,1710711191847,-1591.177477,0.00025927,2]
[319400593,1710711191857,-8206.169904,0.00025927,2]
[319400594,1710711191866,-7774.627749,0.00025927,2]
[319400595,1710711191875,-168.129195,0.00025927,2]
[319400596,1710711191886,-2539.48115,0.00025927,2]
[319400597,1710711191896,-10472.184871,0.00025927,2]
[319400598,1710711191906,-159.974519,0.00025927,2]
[319400599,1710711191916,-1834.561396,0.00025927,2]
[319400600,1710711191926,-791.660269,0.00025927,2]
[319400601,1710711191937,-173.601836,0.00025927,2]
[319400602,1710711191947,-3753.690664,0.00025927,2]
[319400603,1710711191957,-227.212615,0.00025927,2]
[319400604,1710711191966,-3000.0,0.0002594,2]
[319400605,1710711191977,-166.563263,0.00025956,3]
[319400606,1710711191987,-2000.0,0.00025973,2]
[319400607,1710711191997,-500.0,0.00025979,2]
[319400608,1710711192006,-1200.0,0.00026,27]
[319400609,1710711192018,-4211.52127195,0.00026,2]
[319400610,1710711192028,-3326.0,0.00026,2]
[319400611,1710711192038,-7153.93807679,0.00026,2]
[319400612,1710711192049,-150.0,0.00026,2]
[319400613,1710711192060,-150.0,0.00026,2]
[319400614,1710711192070,-702.0,0.00026,14]
[319400615,1710711192082,-155.0,0.00026028,2]
[319400616,1710711192092,-155.592086,0.00026033,2]
[319400617,1710711192102,-181.743366,0.00026033,2]
[319400618,1710711192111,-151.30766298,0.0002606,2]
[319400619,1710711192121,-150.0,0.00026062,2]
[319400620,1710711192130,-150.0,0.00026062,2]
[319400621,1710711192139,-150.0,0.00026062,2]
[319400622,1710711192149,-150.0,0.00026062,2]
[319400623,1710711192158,-150.0,0.00026079,2]
[319400624,1710711192167,-154.06087022,0.00026136,2]
[319400625,1710711192177,-287.70140034,0.00026163,2]
[319400626,1710711192186,-2207.331,0.00026199,2]
[319400627,1710711192195,-1458.0,0.00026199,2]
[319400628,1710711192205,-213.0,0.00026199,2]
[319400629,1710711192214,-1623.0,0.00026199,2]
[319400630,1710711192224,-42878.0,0.00026199,2]
[319400631,1710711192234,-5668.0,0.00026199,2]
[319400632,1710711192243,-4762.0,0.00026199,2]
[319400633,1710711192253,-2420.0,0.00026199,2]
[319400634,1710711192262,-457.0,0.00026199,2]
[319400635,1710711192273,-1227.0,0.00026199,2]
[319400636,1710711192281,-1044.0,0.00026199,2]
[319400637,1710711192290,-536.0,0.00026199,2]
[319400638,1710711192300,-150.0,0.00026244,2]
[319400639,1710711192309,-239.579458,0.00026247,2]
[319400640,1710711192319,-1588.581011,0.00026247,2]
[319400641,1710711192328,-668.812443,0.00026247,2]
[319400642,1710711192338,-3547.320886,0.00026247,2]
[319400643,1710711192347,-4992.752777,0.00026247,2]
[319400644,1710711192357,-1591.177477,0.00026247,2]
[319400645,1710711192366,-8206.169904,0.00026247,2]
[319400646,1710711192377,-7774.627749,0.00026247,2]
[319400647,1710711192386,-168.129195,0.00026247,2]
[319400648,1710711192396,-2539.48115,0.00026247,2]
[319400649,1710711192405,-10472.184871,0.00026247,2]
[319400650,1710711192414,-159.974519,0.00026247,2]
[319400651,1710711192424,-1834.561396,0.00026247,2]
[319400652,1710711192433,-791.660269,0.00026247,2]
[319400653,1710711192442,-173.601836,0.00026247,2]
[319400654,1710711192452,-3753.690664,0.00026247,2]
[319400655,1710711192461,-227.212615,0.00026247,2]
[319400656,1710711192470,-168.286076,0.00026247,2]
[319400657,1710711192479,-173.109916,0.00026247,2]
[319400658,1710711192491,-189.907589,0.00026247,2]
[319400659,1710711192500,-318.52,0.00026265,2]
[319400660,1710711192509,-500.0,0.0002628,90]
[319400661,1710711192519,-70234.35024466,0.000263,2]
[319400662,1710711192528,-25558.25828784,0.000264,2]
[319400663,1710711192538,-304.45,0.000264,2]
[319400664,1710711192547,-304.45,0.000264,2]
[319400665,1710711192557,-304.45,0.000264,2]
[319400666,1710711192567,-304.45,0.000264,2]
[319400667,1710711192576,-304.45,0.000264,2]
[319400668,1710711192587,-304.45,0.000264,2]
[319400669,1710711192596,-304.45,0.000264,2]
[319400670,1710711192605,-304.45,0.000264,2]
[319400671,1710711192614,-304.45,0.000264,2]
[319400672,1710711192623,-304.45,0.000264,2]
[319400673,1710711192631,-304.45,0.000264,2]
[319400674,1710711192640,-304.45,0.000264,2]
[319400675,1710711192649,-304.45,0.000264,2]
[319400676,1710711192658,-304.45,0.000264,2]
[319400677,1710711192667,-304.45,0.000264,2]
[319400678,1710711192676,-304.45,0.000264,2]
[319400679,1710711192685,-304.45,0.000264,2]
[319400680,1710711192694,-304.45,0.000264,2]
[319400681,1710711192703,-304.45,0.000264,2]
[319400682,1710711192712,-304.45,0.000264,2]
[319400683,1710711192721,-304.45,0.000264,2]
[319400684,1710711192730,-304.45,0.000264,2]
[319400685,1710711192739,-304.45,0.000264,2]
[319400686,1710711192748,-304.45,0.000264,2]
[319400687,1710711192757,-151.30766298,0.00026403,2]
[319400688,1710711192767,-201.04772,0.00026416,2]
[319400689,1710711192776,-152.0,0.00026431,4]
[319400690,1710711192785,-154.06087022,0.00026437,2]
[319400691,1710711192794,-155.33791431,0.00026441,2]
[319400692,1710711192803,-155.592086,0.0002646,2]
[319400693,1710711192812,-181.743366,0.0002646,2]
[319400694,1710711192821,-151.30766298,0.00026483,2]
[319400695,1710711192831,-702.0,0.000265,14]
[319400696,1710711192839,-239.579458,0.00026567,2]
[319400697,1710711192849,-1588.581011,0.00026567,2]
[319400698,1710711192858,-668.812443,0.00026567,2]
[319400699,1710711192867,-3547.320886,0.00026567,2]
[319400700,1710711192876,-4992.752777,0.00026567,2]
[319400701,1710711192886,-1591.177477,0.00026567,2]
[319400702,1710711192895,-8206.169904,0.00026567,2]
[319400703,1710711192904,-7774.627749,0.00026567,2]
[319400704,1710711192914,-168.129195,0.00026567,2]
[319400705,1710711192924,-2539.48115,0.00026567,2]
[319400706,1710711192933,-9157.89763709,0.00026567,2]
[319400707,1710711197610,-1250.0,0.0001716,2]
[319400708,1710711197621,-199.64751276,0.00018629,2]
[319400709,1710711197631,-294.19997222,0.00018629,2]
[319400710,1710711197642,-2253.12,0.0001863,2]
[319400711,1710711197652,-14210.26,0.0001863,2]
[319400712,1710711197662,-2253.12,0.0001863,2]
[319400713,1710711197671,-14210.26,0.0001863,2]
[319400714,1710711197681,-1529.39251494,0.0001863,2]
[319400715,1710711197694,-723.72748506,0.0001863,2]
[319400716,1710711197704,-14210.26,0.0001863,2]
[319400717,1710711197713,-2253.12,0.0001863,2]
[319400718,1710711197723,-3896.95913994,0.0001863,2]
[319400719,1710711197746,-3404.60229189,0.0001863,2]
[319400720,1710711197758,-276.1093452,0.0001863,2]
[319400721,1710711197769,-1146.41487995,0.0001863,2]
[319400722,1710711197800,-1958.71728,0.0001863,2]
[319400723,1710711197811,-3527.45706302,0.0001863,2]
[319400724,1710711197820,-2253.12,0.0001863,2]
[319400725,1710711197829,-14210.26,0.0001863,2]
[319400726,1710711197839,-14210.26,0.0001863,2]
[319400727,1710711197848,-2253.12,0.0001863,2]
[319400728,1710711197858,-3932.5551039,0.0001863,2]
[319400729,1710711197870,-10277.7048961,0.0001863,2]
[319400730,1710711197880,-14210.26,0.0001863,2]
[319400731,1710711197889,-2253.12,0.0001863,2]
[319400732,1710711197898,-14210.26,0.0001863,2]
[319400733,1710711197907,-2253.12,0.0001863,2]
[319400734,1710711197916,-14210.26,0.0001863,2]
[319400735,1710711197926,-1321.6497656,0.00019033,2]
[319400736,1710711197936,-882.942,0.0002016,2]
[319400737,1710711197945,-1314.28723391,0.00026567,2]
[319400738,1710711197954,-159.974519,0.00026567,2]
[319400739,1710711197964,-1834.561396,0.00026567,2]
[319400740,1710711197973,-791.660269,0.00026567,2]
[319400741,1710711197982,-173.601836,0.00026567,2]
[319400742,1710711197992,-3753.690664,0.00026567,2]
[319400743,1710711198003,-227.212615,0.00026567,2]
[319400744,1710711198013,-10966.03,0.00026575,2]
[319400745,1710711198022,-3000.0,0.000266,2]
[319400746,1710711198032,-318.52,0.00026665,2]
[319400747,1710711198042,-3608.86420649,0.000267,2]
[319400748,1710711198053,-3798.13579351,0.000267,2]
[319400749,1710711198064,-287.70140034,0.00026725,2]
[319400750,1710711198074,-150.0,0.00026748,2]
[319400751,1710711198084,-1008.66,0.0002682,2]
[319400752,1710711198093,-1008.66,0.0002682,2]
[319400753,1710711198102,-433.98,0.00026831,2]
[319400754,1710711198112,-239.579458,0.00026887,2]
[319400755,1710711198122,-1588.581011,0.00026887,2]
[319400756,1710711198132,-668.812443,0.00026887,2]
[319400757,1710711198141,-3547.320886,0.00026887,2]
[319400758,1710711198151,-2615.06403191,0.00026887,2]
[319400759,1710711198163,-500.0,0.00026887,2]
[319400760,1710711198390,-2253.12,0.0001863,2]
[319400761,1710711198400,-1877.68874509,0.00026887,2]
[319400762,1710711198410,-1591.177477,0.00026887,2]
[319400763,1710711198419,-8206.169904,0.00026887,2]
[319400764,1710711198428,-7774.627749,0.00026887,2]
[319400765,1710711198436,-168.129195,0.00026887,2]
[319400766,1710711198445,-2539.48115,0.00026887,2]
[319400767,1710711198454,-10472.184871,0.00026887,2]
[319400768,1710711198464,-159.974519,0.00026887,2]
[319400769,1710711198473,-1834.561396,0.00026887,2]
[319400770,1710711198483,-791.660269,0.00026887,2]
[319400771,1710711198496,-173.601836,0.00026887,2]
[319400772,1710711198505,-3753.690664,0.00026887,2]
[319400773,1710711198515,-227.212615,0.00026887,2]
[319400774,1710711198525,-174.581413,0.00026887,2]
[319400775,1710711198535,-167.893871,0.00026887,2]
[319400776,1710711198544,-168.286076,0.00026887,2]
[319400777,1710711198554,-155.592086,0.00026887,2]
[319400778,1710711198563,-173.109916,0.00026887,2]
[319400779,1710711198574,-181.743366,0.00026887,2]
[319400780,1710711198584,-189.907589,0.00026887,2]
[319400781,1710711198594,-150.21260499,0.00026925,2]
[319400782,1710711198603,-2000.0,0.00026973,2]
[319400783,1710711198613,-150.212605,0.0002698,2]
[319400784,1710711198622,-10000.0,0.00027,2]
[319400785,1710711198631,-109255.26601929,0.00027,2]
[319400786,1710711198640,-10907.45516186,0.00027,2]
[319400787,1710711198650,-350.19619225,0.00027,2]
[319400788,1710711198659,-6435.44990963,0.00027,2]
[319400789,1710711198683,-219.537887,0.0001863,2]
[319400790,1710711198693,-1362.96836808,0.00027,2]
[319400791,1710711198704,-303.67384753,0.00027,2]
[319400792,1710711198716,-954.50440127,0.00027,2]
[319400793,1710711198741,-2750.3468316,0.00027,2]
[319400823,1710712232066,-500.0,0.00013595,2]
[319400825,1710712232076,-592.124,0.00013596,2]
[319400898,1710712237647,-1474.98341926,0.00013596,2]
[319400899,1710712237707,-432.89258074,0.00013596,2]
[319400900,1710712237717,-150.0,0.00013671,2]
[319400901,1710712237727,-780.10741925,0.00013696,2]
[319400905,1710712239680,-3554.32358615,0.00013696,2]
[319400906,1710712239793,-2896.96897107,0.00013696,2]
[319400907,1710712239808,-2689.99555988,0.00013696,2]
[319400910,1710712242595,-294.78324167,0.00013696,2]
[319400911,1710712242725,-583.23660328,0.00013696,2]
[319400912,1710712242768,-4927.80548323,0.00013696,2]
[319400913,1710712242826,-442.64201041,0.00013696,2]
[319400918,1710712245558,-3131.06849725,0.00013695,2]
[319400919,1710712245567,-12735.53788776,0.00013695,2]
[319400920,1710712245577,-246.1135767,0.00013695,2]
[319400921,1710712245586,-143421.12163087,0.00013696,2]
[319400922,1710712245598,-10023.77322503,0.00013696,2]
[319400923,1710712245615,-619.89790438,0.00013696,2]
[319400924,1710712245675,-1487.344965,0.00013696,2]
[319400925,1710712245734,-299.07844765,0.00013696,2]
[319400926,1710712245863,-8843.92475302,0.00013696,2]
[319400930,1710712648799,380.37,0.00010367,2]
[319400934,1710712808630,171.7,0.00011798,2]
[319400935,1710712859414,187.0,0.00011782,2]
[319400936,1710712899645,187.79,0.00011787,2]
[319400937,1710712904796,969.700398,0.00011772,2]
[319400938,1710712938417,8340.32100013,0.000118,2]
[319400939,1710712958489,364.07656201,0.00011787,2]
[319400940,1710712964781,250.0,0.00011799,2]
[319400941,1710713111159,600.0,0.00011667,2]
[319400942,1710713141517,1000.0,0.00011648,2]
[319400943,1710713179462,1238.09469289,0.00011809,2]
[319400944,1710713182380,235.95798628,0.00011809,2]
[319400945,1710713186078,164.92533829,0.00011809,2]
[319400946,1710713187895,398.74,9.756e-05,2]
[319400947,1710713205908,33854.35,0.00011682,2]